Cogmind - Beta 13 X1 @@@ ROGUE MODE // 2023.07.22 @ 01:25:26 Player: Runia Result: Destroyed by G-47 Trooper with Particle Gun Performance ------------- Evolutions (3) 1500 Regions Visited (6) 1200 Robots Destroyed (75) 375 Value Destroyed (2637) 2637 Prototype IDs (23) 460 Alien Tech Used (0) 0 Bonus (158) 158 TOTAL SCORE: 6330 Bonus ------- Entered Garrisons 200 Friendly Fire -42 Cogmind --------- Core Integrity 0/700 Matter 282/300 Energy 405/405 System Corruption 2% Temperature Warm (192) Movement Rolling (175) Ox5 Location -7/Factory Parts ------- > --- POWER (2) -------- Reinforced Antimatter Reactor Meta Core > --- PROPULSION (5) --- Carbon-fiber Leg Carbon-fiber Leg Titanium Leg Armored Huge Wheel > --- UTILITY (5+1) ---- Experimental Coolant Injector Huge Storage Unit Multitargeting Array (+) Transmission Jammer Centrium Heavy Armor Plating > --- WEAPON (2) ------- Wave Gun Wave Gun > --- INVENTORY (25) --- Reinforced Deuterium Engine Experimental Cryofiber Web Experimental Cooling System High-capacity Matter Pod (200) Improved Sensor Array Improved Signal Interpreter Active Sensor Suite Weapon Cycler Hardened Medium Armor Plating Graphene Brace Gatling Laser Mini Grenade Launcher Mini Grenade Launcher Peak State ------------ > --- POWER ------------ Reinforced Antimatter Reactor Meta Core > --- PROPULSION ------- Light Treads Carbon-fiber Leg Arachnoskeleton > --- UTILITY ---------- Experimental Coolant Injector Large Storage Unit Multitargeting Array Centrium Heavy Armor Plating Medium Reactive Plating > --- WEAPON ----------- Wave Gun Wave Gun Phase Gun > --- INVENTORY -------- Reinforced Deuterium Engine Experimental Cryofiber Web Experimental Cooling System High-capacity Matter Pod Improved Sensor Array Improved Signal Interpreter Active Sensor Suite Weapon Cycler Transmission Jammer Graphene Brace Gauss Rifle Mini Grenade Launcher Mini Grenade Launcher [Rating: 111] Favorites ----------- Power Ion Engine Engine Ion Engine Power Core Meta Core Reactor Reinforced Antimatter Reactor Propulsion Light Treads Treads Light Treads Leg Carbon-fiber Leg Wheel Compact Wheel Utility Large Storage Unit Device Improved Heat Sink Storage Large Storage Unit Processor Advanced Targeting Computer Protection Scrap Shield Weapon Advanced Beam Cannon Energy Gun Wave Gun Energy Cannon Advanced Beam Cannon Ballistic Gun Assault Rifle Launcher Mini Grenade Launcher Piercing Weapon Makeshift Spear Special Melee Weapon Improved Datajack Build | -11 -10 -10 -8 -7 -7 -7 ------- Run | Jun Mat Sub Mat Fac Gar Fac Slots Evolved 6 | . . . 4 2 . . Power 1 | . . . . 1 . . Propulsion 2 | . . . 2 . . . Utility 3 | . . . 2 1 . . Weapon . | . . . . . . . Parts Attached 90 | 2 10 14 29 27 5 3 Power 6 | . 2 . 1 3 . . Engine 2 | . 1 . 1 . . . Core 3 | . 1 . . 2 . . Reactor 1 | . . . . 1 . . Propulsion 20 | 2 . 5 5 4 2 2 Treads 13 | 2 . 3 5 2 1 . Leg 4 | . . . . 2 1 1 Wheel 3 | . . 2 . . . 1 Hover . | . . . . . . . Flight . | . . . . . . . Utility 28 | . 3 6 10 7 1 1 Device 10 | . 2 2 3 2 1 . Storage 4 | . 1 1 1 . . 1 Processor 3 | . . . 2 1 . . Hackware . | . . . . . . . Protection 11 | . . 3 4 4 . . Artifact . | . . . . . . . Weapon 36 | . 5 3 13 13 2 . Energy Gun 5 | . 1 . . 3 1 . Energy Cannon 11 | . 2 2 7 . . . Ballistic Gun 8 | . 1 . 1 6 . . Ballistic Cannon . | . . . . . . . Launcher 7 | . 1 1 4 . 1 . Special Weapon . | . . . . . . . Impact Weapon . | . . . . . . . Slashing Weapon . | . . . . . . . Piercing Weapon 4 | . . . 1 3 . . Special Melee Weapon 1 | . . . . 1 . . Unidentified Prototypes 2 | . 1 . 1 . . . Parts Lost 22 | . 1 1 2 16 2 . Power 2 | . . . . 2 . . Propulsion 6 | . . . 1 4 1 . Utility 7 | . . 1 1 5 . . Weapon 7 | . 1 . . 5 1 . Highest Loss Streak 15 | . 1 1 1 15 1 . To Critical Strikes . | . . . . . . . Average Slot Usage (%) 88 | . 97 90 95 72 67 85 Engine 9 | . 6 14 9 4 . . Core 1 | . 5 . . 3 5 6 Treads 23 | . 28 24 31 18 3 2 Leg 1 | . . . . 2 10 18 Wheel 2 | . . 3 2 . . 3 Device 7 | . 13 3 7 6 14 20 Storage 7 | . 14 5 9 6 5 6 Processor 2 | . . . 7 5 . . Protection 7 | . . 9 9 7 7 6 Energy Gun 2 | . 10 . . 3 12 13 Energy Cannon 17 | . 7 27 17 4 . . Ballistic Gun 1 | . 10 . . 3 . . Naked Turns . | . . . . . . . Heaviest Build 145 | 13 34 40 60 110 110 145 Greatest Support 82 | 40 40 40 82 82 65 47 Greatest Overweight (x) 5 | . . 2 3 2 5 5 Average Overweight (x) . | . . . . . 1 2 Largest Inventory Capacity 25 | 8 15 15 15 15 15 25 Average Capacity 12 | 8 14 9 15 15 15 15 Most Carried 15 | 6 15 15 15 15 15 15 Average Carried 11 | 5 12 8 14 13 14 14 Final Capacity 25 | 8 15 15 15 15 15 25 Final Carried 15 | 4 15 15 15 15 14 15 Class Distribution -------------------- 54% | Mutant 37% | Scavenger-Mutant 5% | Scavenger-Tank Dominant Class ---------------- Mutant | -10/Materials Mutant | -10/Subcaves Scavenger-Mutant | -8/Materials Scavenger-Mutant | -7/Factory Scavenger-Mutant | -7/Garrison Scavenger-Mutant | -7/Factory Resources | -11 -10 -10 -8 -7 -7 -7 ----------- Run | Jun Mat Sub Mat Fac Gar Fac Matter Collected 1939 | 200 439 235 359 594 20 92 Remotely . | . . . . . . . Salvage Created 3118 | . 454 513 1180 453 384 134 Parts 163 | . 25 37 50 27 19 5 Haulers Intercepted 5 | . 1 . 4 . . . Recyclers Shooed 3 | . 1 . 1 1 . . Parts Field Recycled . | . . . . . . . Retrieved Matter . | . . . . . . . Parts Self-Destructed 27 | . . 27 . . . . Prevented . | . . . . . . . Kills | -11 -10 -10 -8 -7 -7 -7 ------- Run | Jun Mat Sub Mat Fac Gar Fac Combat Hostiles Destroyed 54 | . 8 14 16 5 9 2 Melee 1 | . . . . 1 . . Guns 22 | . 8 . . 4 8 2 Cannons 22 | . . 12 10 . . . AOE 6 | . . 2 3 . 1 . Classes Destroyed 15 | . 4 2 6 3 . . Worker 6 | . 1 . 3 2 . . Builder 1 | . . . 1 . . . Tunneler 1 | . . . 1 . . . Hauler 5 | . 1 . 4 . . . Recycler 3 | . . . 1 2 . . Mechanic 1 | . 1 . . . . . Watcher 4 | . . . 3 1 . . Swarmer 1 | . . . . 1 . . Grunt 25 | . 8 . 12 . 5 . Sentry 6 | . . . 3 . 1 2 Hunter 4 | . . . 1 1 2 . Programmer 3 | . . . . 2 1 . Heavy 1 | . . . . 1 . . Cobbler 1 | . . 1 . . . . Subdweller 14 | . . 14 . . . . Best Kill Streak 5 | . 3 3 5 3 3 2 Combat Bots Only 3 | . 2 3 3 3 3 2 Max Kills in Single Turn 3 | . 1 1 3 1 2 1 Gunslinging . | . . . . . . . Exploded 1 | . . 1 1 . 1 . Melee 1 | . . . . 1 . . Uniques/NPCs Destroyed . | . . . . . . . Combat | -11 -10 -10 -8 -7 -7 -7 -------- Run | Jun Mat Sub Mat Fac Gar Fac Damage Taken 6203 | . 408 943 743 3439 434 236 Core 938 | . 47 135 43 653 10 50 Absorbed by Shields . | . . . . . . . Ignored by Resistances 289 | . . . . 283 6 . Regen/Repaired (Parts) 40 | . . . 40 . . . Core Remaining (%) 73 | 100 . 27 92 . . . Volleys Fired 242 | . 34 73 55 48 26 6 Largest 3 | . 2 2 2 3 3 2 Hottest 250 | . 85 148 148 250 250 162 Shots Fired 446 | . 67 126 101 89 51 12 Gun 210 | . 66 . . 85 47 12 Cannon 219 | . . 121 94 4 . . Launcher 17 | . 1 5 7 . 4 . Special . | . . . . . . . Kinetic 87 | . 33 5 . 49 . . Thermal 347 | . 33 121 94 40 47 12 Explosive 12 | . 1 . 7 . 4 . Electromagnetic . | . . . . . . . Robot Hit Streak 25 | . 11 25 13 25 11 8 Robot Miss Streak 4 | . 4 1 3 2 4 3 Penetration Max . | . . . . . . . Secondary Targets . | . . . . . . . Shots Hit Robots 294 | . 45 71 57 85 28 8 Core Hits 135 | . 23 27 39 24 17 5 Critical Kills 3 | . . . 3 . . . Critical Parts Destroyed . | . . . . . . . Critical Strikes 4 | . . . 3 . . 1 Burn 1 | . . . . . . 1 Meltdown 3 | . . . 3 . . . Melee Attacks 27 | . . . . 27 . . Impact . | . . . . . . . Slashing . | . . . . . . . Piercing 26 | . . . . 26 . . Sneak Attacks 1 | . . . . 1 . . Combat Hostiles . | . . . . . . . Follow-up Attacks 1 | . . . . 1 . . Damage Inflicted 7576 | . 559 2294 2221 1407 903 192 Guns 2315 | . 559 . . 936 628 192 Cannons 3237 | . . 1660 1476 101 . . Explosions 1654 | . . 634 745 . 275 . Melee 361 | . . . . 361 . . Ramming 9 | . . . . 9 . . Kinetic 1213 | . 253 634 . 326 . . Thermal 4973 | . 306 1660 1476 711 628 192 Explosive 1020 | . . . 745 . 275 . Electromagnetic . | . . . . . . . Impact . | . . . . . . . Slashing . | . . . . . . . Piercing 361 | . . . . 361 . . Highest Corruption 5 | . . . 5 1 2 2 Average Corruption 3 | . . . 5 1 1 2 Corruption Purged . | . . . . . . . Corruption Blocked . | . . . . . . . Effects 25 | . . . 14 1 6 4 Message Errors 7 | . . . 3 1 3 . Matter Fused 5 | . . . 3 . 1 1 Heat Flow Errors 4 | . . . 4 . . . Energy Discharges 1 | . . . . . . 1 Data Loss (minor) 4 | . . . 3 . . 1 Data Loss (major) 2 | . . . 1 . . 1 Misfires 1 | . . . . . 1 . Alerts 1 | . . . . . 1 . Overload Shots . | . . . . . . . Overflow Damage 25 | . . . 25 . . . Projectiles . | . . . . . . . Explosions 25 | . . . 25 . . . Melee . | . . . . . . . Knockbacks . | . . . . . . . Impact . | . . . . . . . Kinetic . | . . . . . . . Secondary . | . . . . . . . Self-Inflicted Damage 10 | . . . 10 . . . Shots 1 | . . . 1 . . . Rammed . | . . . . . . . Targets Rammed 2 | . . . . 2 . . Kicked 1 | . . . . 1 . . Crushed 1 | . . . . 1 . . Highest Temperature 410 | . 12 270 303 410 196 183 Average Temperature 84 | . 5 89 85 82 89 104 Received Heat Transfer 2217 | . 210 468 252 1113 90 84 Siege Activations . | . . . . . . . Robots Corrupted . | . . . . . . . Combat Hostiles . | . . . . . . . Parts Fried . | . . . . . . . Impact Corruptions . | . . . . . . . Robots Melted 3 | . . . 3 . . . Combat Hostiles 3 | . . . 3 . . . Parts Melted 15 | . . 2 10 1 . 2 Heat Transferred 7810 | . 709 2590 2183 1036 922 370 Parts Sabotaged . | . . . . . . . Parts Stolen . | . . . . . . . Parts Stripped . | . . . . . . . Power Chain Reactions . | . . . . . . . Missiles Intercepted . | . . . . . . . Alert | -11 -10 -10 -8 -7 -7 -7 ------- Run | Jun Mat Sub Mat Fac Gar Fac Peak Influence 310 | . 208 . 310 138 283 234 Initial 148 | . . . 101 63 60 148 Average 98 | . 70 . 133 45 161 186 Maximum Alert Level 1 | . 1 . 1 . 1 1 Low Security (%) 87 | 100 96 . 81 100 58 59 Level 1 12 | . 3 . 18 . 41 40 Level 2 . | . . . . . . . Level 3 . | . . . . . . . Level 4 . | . . . . . . . Level 5 . | . . . . . . . High Security . | . . . . . . . Max Security . | . . . . . . . Squads Dispatched 14 | . 2 . 3 9 . . Investigation 2 | . 2 . . . . . Extermination 3 | . . . . 3 . . Reinforcement 6 | . . . 3 3 . . Assault . | . . . . . . . Garrison 3 | . . . . 3 . . Intercept . | . . . . . . . Searches Triggered . | . . . . . . . Construction Impeded . | . . . . . . . Haulers Reinforced . | . . . . . . . Active Scanning Responses . | . . . . . . . Cargo Convoy Interrupts . | . . . . . . . Stealth | -11 -10 -10 -8 -7 -7 -7 --------- Run | Jun Mat Sub Mat Fac Gar Fac Distress Signals 10 | . 3 . 5 2 . . Communications Jammed 1 | . . . . . . 1 Distress Signals . | . . . . . . . Times Spotted 112 | . 21 31 24 24 9 3 Peak Tracking Total 6 | . 4 2 4 6 2 2 Tactical Retreats 7 | . 2 3 . 2 . . Traps | -11 -10 -10 -8 -7 -7 -7 ------- Run | Jun Mat Sub Mat Fac Gar Fac Traps Triggered 6 | . 1 1 1 1 2 . Indirectly . | . . . . . . . Trap Hack Attempts . | . . . . . . . Triggered . | . . . . . . . Disarmed . | . . . . . . . Reprogrammed . | . . . . . . . Reused . | . . . . . . . Traps Extracted . | . . . . . . . Installed . | . . . . . . . Triggered . | . . . . . . . Machines | -11 -10 -10 -8 -7 -7 -7 ---------- Run | Jun Mat Sub Mat Fac Gar Fac Machines Disabled 3 | . . 1 2 . . . Max in Single Turn 1 | . . 1 1 . . . Machines Repaired . | . . . . . . . Machines Sabotaged . | . . . . . . . Overloaded Fab Kills . | . . . . . . . Hacking | -11 -10 -10 -8 -7 -7 -7 --------- Run | Jun Mat Sub Mat Fac Gar Fac Machines Accessed 14 | . 5 1 5 1 . 2 Terminals 8 | . 3 . 4 . . 1 Fabricators . | . . . . . . . Repair Stations 1 | . . . 1 . . . Recycling Units 2 | . 2 . . . . . Scanalyzers . | . . . . . . . Garrison Access 2 | . . . . 1 . 1 Total Hacks 36 | . 8 9 14 3 . 2 Successful 22 | . 4 9 7 1 . 1 Failed 14 | . 4 . 7 2 . 1 Catastrophic . | . . . . . . . Database Lockouts . | . . . . . . . Manual 4 | . 2 . 2 . . . Terminals 18 | . 6 . 11 . . 1 Fabricators . | . . . . . . . Repair Stations 3 | . . . 3 . . . Recycling Units 2 | . 2 . . . . . Scanalyzers . | . . . . . . . Garrison Access 4 | . . . . 3 . 1 Terminal Hacks 17 | . 2 9 5 . . 1 Record 8 | . . 8 . . . . Robot Analysis 1 | . 1 . . . . . Prototype ID Bank 1 | . . . 1 . . . Branch Access Points 1 | . . . . . . 1 Unreport Threat 1 | . . . 1 . . . Hauler Manifests 1 | . . . 1 . . . Zone Layout 3 | . 1 . 2 . . . Derelict Proto ID Bank 1 | . . 1 . . . . Fabricator Hacks . | . . . . . . . Repair Station Hacks 2 | . . . 2 . . . Scan Component 1 | . . . 1 . . . Repair 1 | . . . 1 . . . Recycling Unit Hacks . | . . . . . . . Scanalyzer . | . . . . . . . Garrison Access Hacks 1 | . . . . 1 . . Unlock Access 1 | . . . . 1 . . Unauthorized Hacks 2 | . 2 . . . . . Terminals . | . . . . . . . Fabricators . | . . . . . . . Repair Stations . | . . . . . . . Recycling Units 2 | . 2 . . . . . Tunnel 2 | . 2 . . . . . Scanalyzers . | . . . . . . . Garrison Access . | . . . . . . . Data Cores Recovered . | . . . . . . . Used . | . . . . . . . Hacking Detections 10 | . 3 . 4 1 . 2 Full Trace Events . | . . . . . . . Feedback Events . | . . . . . . . Feedback Blocked . | . . . . . . . Robot Schematics Acquired . | . . . . . . . Robots Built . | . . . . . . . Authchips . | . . . . . . . Time . | . . . . . . . Total Robot Build Rating . | . . . . . . . Part Schematics Acquired . | . . . . . . . Parts Built . | . . . . . . . Authchips . | . . . . . . . Time . | . . . . . . . Total Part Build Rating . | . . . . . . . Parts Repaired 1 | . . . 1 . . . Time 51 | . . . 51 . . . Parts Recycled . | . . . . . . . Recycled Matter . | . . . . . . . Retrieved Matter . | . . . . . . . Retrieved Components . | . . . . . . . Parts Scanalyzed . | . . . . . . . Part Schematics Acquired . | . . . . . . . Parts Damaged . | . . . . . . . Bothacking | -11 -10 -10 -8 -7 -7 -7 ------------ Run | Jun Mat Sub Mat Fac Gar Fac Used RIF Installer . | . . . . . . . Robots Hacked 1 | . . . . 1 . . Non-combat . | . . . . . . . Combat 1 | . . . . 1 . . Robot Hacks Applied 1 | . . . . 1 . . parse_system 1 | . . . . 1 . . Relay Couplers Released . | . . . . . . . Fabnet Peak Effective % . | . . . . . . . Robots Rewired . | . . . . . . . Allies Hacked . | . . . . . . . Hacks Repelled . | . . . . . . . Allies | -11 -10 -10 -8 -7 -7 -7 -------- Run | Jun Mat Sub Mat Fac Gar Fac Total Allies . | . . . . . . . Largest Group . | . . . . . . . Highest-Rated Group . | . . . . . . . Highest-Rated Ally . | . . . . . . . Total Orders . | . . . . . . . Ally Attacks . | . . . . . . . Total Damage . | . . . . . . . Kills . | . . . . . . . Allies Corrupted . | . . . . . . . Allies Melted . | . . . . . . . Intel | -11 -10 -10 -8 -7 -7 -7 ------- Run | Jun Mat Sub Mat Fac Gar Fac Robot Analysis Total 1 | . 1 . . . . . Derelict Logs Recovered 2 | . . 2 . . . . Drone Launches . | . . . . . . . Drone Recoveries . | . . . . . . . Exploration | -11 -10 -10 -8 -7 -7 -7 ------------- Run | Jun Mat Sub Mat Fac Gar Fac Turns Passed 8600 | 3 1161 3817 1571 1372 365 311 Spaces Moved 4699 | 1 622 2344 808 656 112 156 Core . | . . . . . . . Treads 3329 | 1 622 1676 586 444 . . Legs 397 | . . . . 212 112 73 Wheels 973 | . . 668 222 . . 83 Hover . | . . . . . . . Flight . | . . . . . . . Fastest Speed 90 | 160 160 120 130 90 185 145 Average Speed 155 | 160 160 150 153 156 212 178 Slowest Speed 470 | 160 160 160 160 270 470 260 Overloaded Moves . | . . . . . . . Propulsion Burnouts . | . . . . . . . Robots Hopped . | . . . . . . . Cave-ins Triggered . | . . . . . . . Exploration Rate (%) 42 | 2 81 90 79 18 25 4 Regions Visited 6 Branch Regions 1 Pre-discovered Areas 4 | . 2 2 . . . . Known Exits Taken 1 | . . . . 1 . . Unknown Exits Taken 4 | 1 1 1 1 . . . Scrap Searched 10 | . . 10 . . . . Spaces Dug 22 | . 11 4 7 . . . Terrain Destroyed 160 | . 11 74 37 . 38 . Melee . | . . . . . . . Projectile 16 | . . 5 10 . 1 . AOE 144 | . 11 69 27 . 37 . Terrain Rammed . | . . . . . . . Walls Destroyed . | . . . . . . . Machines Disabled . | . . . . . . . Actions | -11 -10 -10 -8 -7 -7 -7 --------- Run | Jun Mat Sub Mat Fac Gar Fac Total 5552 | 4 721 2504 1041 903 199 180 Wait 367 | . 31 36 119 125 46 10 Move 4694 | . 621 2343 807 656 111 156 Hop . | . . . . . . . Pick Up 57 | . 14 19 10 12 . 2 Fast Attach 41 | . 5 5 12 15 2 2 Attach 16 | 2 . 3 3 7 1 . Detach 1 | . . . 1 . . . Swap 34 | . 6 6 14 5 2 1 Drop 60 | 2 10 17 20 7 1 3 Fire 242 | . 34 73 55 48 26 6 Melee 26 | . . . . 26 . . Ram . | . . . . . . . Kick 1 | . . . . 1 . . Crush 1 | . . . . 1 . . Escape Stasis 10 | . . . . . 10 . Rewire . | . . . . . . . Trap . | . . . . . . . Miscellaneous 2 | . . 2 . . . . Route ------- -11/Junkyard -10/Materials (discovered 5 exits: [*Mat x3] / [*Min] / *Sub) -10/Subcaves (discovered 3 exits: *Mat x2 / [*Rec]) -8/Materials (discovered 2 exits: *Fac / [*Sto]) -7/Factory -7/Garrison -7/Factory (discovered 2 exits: Low x2) History --------- Turn | Location | Event 4 | -11/Junkyard | Discovered new exit (range 0) 4 | -11/Junkyard | Entered Materials 35 | -10/Materials | Discovered new exit (range 15) 307 | -10/Materials | Build established: Mutant 334 | -10/Materials | Discovered new exit (range 10) 474 | -10/Materials | Discovered new exit (range 15) 662 | -10/Materials | Discovered new exit (range 11) 944 | -10/Materials | Discovered new exit (range 10) 1165 | -10/Materials | Entered Subcaves 1236 | -10/Subcaves | Learned location of Zion (-6) 1236 | -10/Subcaves | Met a Zionite searching for "candidates" 1299 | -10/Subcaves | Shifting Twisted Machinery released Sub. Machine Gun 1358 | -10/Subcaves | Discovered new exit (range 16) 1458 | -10/Subcaves | Shifting Twisted Machinery released Humpback 1489 | -10/Subcaves | Disturbed a concealed Subdweller 1493 | -10/Subcaves | Disturbed a concealed Subdweller 1995 | -10/Subcaves | Shifting Twisted Machinery released Riot Gun 2961 | -10/Subcaves | Visited 4L-MR0's lab 2982 | -10/Subcaves | Found Meta Core 3668 | -10/Subcaves | Discovered new exit (range 12) 3735 | -10/Subcaves | Build established: Scavenger-Mutant 3973 | -10/Subcaves | Learned Materials emergency access door positions 4253 | -10/Subcaves | Core integrity fell below 50% 4528 | -10/Subcaves | Discovered new exit (range 15) 4600 | -10/Subcaves | Build established: Mutant 4780 | -10/Subcaves | A Subdweller sparked back to life 4818 | -10/Subcaves | Found Arachnoskeleton 4839 | -10/Subcaves | Shifting Twisted Machinery released Riot Gun 4982 | -10/Subcaves | Entered Materials 4982 | -8/Materials | Evolved 4 slots: Propulsion x2, Utility x2 4983 | -8/Materials | Discovered new exit (range 11) 5195 | -8/Materials | Repaired Adv. Beam Cannon 5304 | -8/Materials | Met 7R-MNS 5348 | -8/Materials | Discovered new exit (range 16) 5422 | -8/Materials | Build established: Scavenger-Mutant 6553 | -8/Materials | Entered Factory 6553 | -7/Factory | Evolved 2 slots: Power x1, Utility x1 6554 | -7/Factory | Caught up to 7R-MNS 6870 | -7/Factory | Garrison activated, responded to threat 7379 | -7/Factory | Attacked by 7R-MNS 7442 | -7/Factory | Attached Arachnoskeleton, gained temporary slots: Propulsion x3 7475 | -7/Factory | Core integrity fell below 50% 7518 | -7/Factory | Core integrity fell below 20% 7541 | -7/Factory | Attached Meta Core, gained temporary slots: Propulsion, Utility, Weapon 7548 | -7/Factory | Lost 15 parts (2p4n4u5w) 7605 | -7/Factory | Found Centrium Heavy Armor Plating 7638 | -7/Factory | Found Multitargeting Array 7728 | -7/Factory | Found Prototype Device 7915 | -7/Factory | Build established: Scavenger-Tank 7925 | -7/Factory | Identified exit to Garrison 7925 | -7/Factory | Entered Garrison 7993 | -7/Garrison | Triggered checkpoint 8264 | -7/Garrison | Discovered new exit (range 11) 8290 | -7/Garrison | Entered Factory 8367 | -7/Factory | Build established: Scavenger-Mutant 8411 | -7/Factory | Identified exit to Lower Caves 8601 | -7/Factory | Destroyed by G-47 Trooper with Particle Gun Last Messages --------------- (67,36) Lower Caves (42,93) Lower Caves Map updated. 08448_ Dropped Lgt. Treads. 08448_ Acquired Arm. Huge Wheel. 08468_ System corrupted: Substantial component data lost. 08476_ Y-54 Guardian destroyed. 08482_ Acquired 65 matter. 08488_ Y-54 Guardian signal jammed. 08488_ Y-54 Guardian suffers critical hit (Burn). 08488_ Gatling Laser melted. 08488_ Lgt. Treads melted. 08488_ Y-54 Guardian destroyed. 08492_ System corrupted: Energy discharge (-85). 08493_ Acquired 27 matter. 08519_ Dropped Gauss Rifle. 08520_ Acquired Gatling Laser. 08525_ System corrupted: Matter fused (-8). 08576_ Dropped Lrg. Storage Unit. 08586_ System corrupted: Component data lost. Map ----- +----------------------------------------------------+ | ?????????????????????????????????????? | | ?????????????????????????????????????? | | ?????????????????????????????????????? | | ?????????????????????????????????????? | | ?????????????????????????????????????? | | ?????????????????????????????????????? | | ?????????????????????????????????????? | | ?????????????????????????????????????? | | ?????????????????????????????????????? | | ?????????????????????????????????????? | | ?????????????????????????????????????? | | ?????????????????????????????????????? | | ?????????????????????????????????????? | | ?????????????????????????????????????? | | ?????????????????????????????????????? | | ?????????????????????????????????????? | | ??????????????????????#######????????? | | ??????????????????????#! #????????? | | ??????????????????????# """#????????? | | ??????????????????????# """#????????? | | ??????????????????????# """#????????? | | ??????????????????????# #????????? | | ??????????????????????#= #????????? | | ??????????????????????# #????????? | | ??????????????????????##+##### #??? | | ?????????########??????# @ ga #??? | | ?????????? ?????# #####/#?????? | | ?????????# """ ###### #???????????? | | ?????????# """ + #???????????? | | ?????????# """ # #???????????? | | ?????????? # #???????????? | | ?????????# [ """ /# #???????????? | | ?????????# """ # #???????????? | | ?????????# """ + ##+#???????????? | | ?????????# #t #??????????????? | | ??????############# #??????????????? | | ??????# # #??????????????? | | ???????? """ # #??????????????? | | ???????? """ + +??????????????? | | ???????? """ # #??????????????? | | ???????? "" # #??????????????? | | ???????? "" !?# #??????????????? | | ???????? !?# #??????????????? | | ???????#########??# #??????????????? | | ???????##########?# #??????????????? | | ???????# ### #########??????? | | ???????# """ ## # #??????? | | ???????# """ =## T # """ #??????? | | ???????#= """[ + "" + """ #??????? | | ???????+ =## # """ #??????? | +----------------------------------------------------+ Best States ------------- Heat Dissipation 48 Coolant Potential 120 Energy Generation 33 Energy Capacity 405 Matter Stores 300 Matter Capacity 300 Sight Range 16 Terrain Scan Density 10 Jamming Range 12 Armor Coverage 950 Resistance: KI 30 Evasion (%) 57 Targeting Accuracy 16 Recoil Reduction 4 Item Schematics ----------------- None Robot Schematics ------------------ None Fabricated ------------ Nothing Alien Tech Used ----------------- None Achievements -------------- Fearless Challenges ------------ None Game ------ Seed BurstBattleProtection Manual? 0 Play Time 00:51:41 Cumulative 812.2 hours Start 2023.07.22 @ 00:20:55 End 2023.07.22 @ 01:25:26 Sessions 3 Manual Loads 0 Difficulty Rogue Special Mode None Game No. 703 Rogue 703 Adventurer 0 Explorer 0 Win Type - Total 39 Types 14/7/7/1/1/1/6/1/1 Lore% 93 Gallery% 96 Achievement% 82 Wizard Run 0 Options --------- ASCII 0 Keyboard 0 Movement Mouse Keybinds 1 Fullscreen 2 Font 24/Smallcaps Map View 76x50 Tactical HUD 1 Map Filters NONE Filters NONE Steam 1 RUN: 53152e9c-5ea5-42ce-b32c-9e01913c4ff7